[Event "GER-ch Youth U12W 2020"]
[Site "Willingen"]
[Date "2020.10.28"]
[Round "3.1"]
[White "Haug, Mara"]
[Black "Bräutigam, Katerina"]
[Result "0-1"]
[ECO "C50"]
[WhiteElo "1366"]
[BlackElo "1744"]
[Annotator "NA"]
[PlyCount "50"]
[EventDate "2020.10.27"]
[EventType "swiss"]
[EventRounds "7"]
[EventCountry "GER"]
[SourceTitle "playchess.com"]
[Source "ChessBase"]
[SourceQuality "1"]
[TimeControl "40/5400+30:1800+30"]

1. e4 {[%emt 0:00:00]} e5 {[%emt 0:00:00]} 2. Nf3 {[%emt 0:00:00]} Nc6 {[%emt 0:00:00]} 3. Bc4 {[%emt 0:00:00]} Bc5 {[%emt 0:00:00]} 4. O-O {[%emt 0:00:04]} Nf6 {[%emt 0:00:09]} 5. d4 {[%emt 0:00:32]} Bxd4 {[%emt 0:00:13]} 6. Nxd4 {[%emt 0:00:08]} Nxd4 {[%emt 0:00:27]} 7. f4 {[%emt 0:00:18]} d6 {[%emt 0:00:08]} 8. fxe5 {[%emt 0:00:10]} dxe5 {[%emt 0:00:06]} 9. Bg5 {[%emt 0:00:57]} Qe7 {[%emt 0:00:18]} 10. c3 {[%emt 0:08:25]} Ne6 {[%emt 0:01:33]} 11. Bxf6 {[%emt 0:01:12]} gxf6 {[%emt 0:01:22]} 12. Na3 {[%emt 0:05:30]} Rg8 {[%emt 0:13:00]} 13. Nc2 {[%emt 0:06:59]} Qc5+ {[%emt 0:09:25]} 14. Kh1 {[%emt 0:07:38]} Qxc4 {[%emt 0:01:10]} 15. Qf3 {[%emt 0:17:26]} Nf4 {[%emt 0:25:43]} 16. Ne3 {[%emt 0:04:57]} Qe2 {[%emt 0:41:41]} 17. Qxe2 {[%emt 0:03:49]} Nxe2 {[%emt 0:00:07]} 18. Nd5 {[%emt 0:03:52]} Kf8 {[%emt 0:00:41]} 19. g3 {[%emt 0:02:14]} c6 {[%emt 0:02:16]} 20. Ne3 {[%emt 0:03:01]} Nxg3+ {[%emt 0:00:39]} 21. hxg3 {[%emt 0:00:04]} Rxg3 {[%emt 0:00:11]} 22. Nf5 {[%emt 0:01:17]} Bxf5 {[%emt 0:00:15]} 23. Rxf5 {[%emt 0:01:19]} Ke7 {[%emt 0:00:44]} 24. Raf1 {[%emt 0:05:06]} Rag8 {[%emt 0:01:14]} 25. a4 {[%emt 0:01:39]} Rh3# {[%emt 0:00:07]} 0-1

[Event "GER-ch Youth U12W 2020"]
[Site "Willingen"]
[Date "2020.10.28"]
[Round "3.2"]
[White "Arnold, Rubina"]
[Black "Peglau, Charis"]
[Result "0-1"]
[ECO "A04"]
[WhiteElo "1414"]
[BlackElo "1768"]
[Annotator "NA"]
[PlyCount "80"]
[EventDate "2020.10.27"]
[EventType "swiss"]
[EventRounds "7"]
[EventCountry "GER"]
[SourceTitle "playchess.com"]
[Source "ChessBase"]
[SourceQuality "1"]
[TimeControl "40/5400+30:1800+30"]

1. Nf3 {[%emt 0:00:00]} c6 {[%emt 0:01:34]} 2. d4 {[%emt 0:00:44]} d5 {[%emt 0:00:06]} 3. b3 {[%emt 0:01:27]} Nf6 {[%emt 0:00:32]} 4. Bb2 {[%emt 0:00:22]} Bf5 {[%emt 0:00:26]} 5. e3 {[%emt 0:00:19]} e6 {[%emt 0:00:48]} 6. Bd3 {[%emt 0:00:11]} Bg6 {[%emt 0:00:24]} 7. O-O {[%emt 0:00:34]} Bd6 {[%emt 0:00:22]} 8. c4 {[%emt 0:01:14]} O-O {[%emt 0:02:17]} 9. Ne5 {[%emt 0:17:34]} Bxd3 {[%emt 0:15:41]} 10. Nxd3 {[%emt 0:01:41]} Nbd7 {[%emt 0:02:16]} 11. c5 {[%emt 0:05:47]} Bc7 {[%emt 0:00:34]} 12. Nd2 {[%emt 0:03:52]} Qe7 {[%emt 0:02:58]} 13. Nf3 {[%emt 0:04:09]} Ne4 {[%emt 0:01:00]} 14. Qc2 {[%emt 0:06:56]} f6 {[%emt 0:04:53]} 15. Nd2 {[%emt 0:03:56]} Nxd2 {[%emt 0:01:15]} 16. Qxd2 {[%emt 0:01:16]} e5 {[%emt 0:00:19]} 17. f3 {[%emt 0:05:05]} e4 {[%emt 0:02:39]} 18. fxe4 {[%emt 0:00:46]} Qxe4 {[%emt 0:00:13]} 19. Nf2 {[%emt 0:03:02]} Qh4 {[%emt 0:04:19]} 20. g3 {[%emt 0:03:10]} Qg5 {[%emt 0:02:16]} 21. Nh3 {[%emt 0:04:13]} Qg4 {[%emt 0:00:33]} 22. Qg2 {[%emt 0:01:25]} Rae8 {[%emt 0:04:08]} 23. Rae1 {[%emt 0:01:02]} f5 {[%emt 0:02:06]} 24. Nf4 {[%emt 0:01:28]} Nf6 {[%emt 0:08:50]} 25. Qf3 {[%emt 0:07:34]} Re4 {[%emt 0:11:59]} 26. Ng2 {[%emt 0:03:09]} g6 {[%emt 0:03:23]} 27. Qxg4 {[%emt 0:05:13]} Nxg4 {[%emt 0:00:31]} 28. Nf4 {[%emt 0:00:49]} Nxe3 {[%emt 0:01:12]} 29. Rf3 {[%emt 0:03:24]} Rfe8 {[%emt 0:01:41]} 30. Bc1 {[%emt 0:02:16]} Nc2 {[%emt 0:03:59]} 31. Rxe4 {[%emt 0:00:18]} fxe4 {[%emt 0:02:41]} 32. Rf1 {[%emt 0:00:51]} Nxd4 {[%emt 0:00:32]} 33. Kh1 {[%emt 0:03:00]} e3 {[%emt 0:03:09]} 34. Re1 {[%emt 0:00:51]} e2 {[%emt 0:00:18]} 35. Kg2 {[%emt 0:01:29]} Ba5 {[%emt 0:00:45]} 36. Kf2 {[%emt 0:00:30]} Bxe1+ {[%emt 0:00:08]} 37. Kxe1 {[%emt 0:00:07]} Nf3+ {[%emt 0:00:33]} 38. Kf2 {[%emt 0:00:06]} e1=Q+ {[%emt 0:00:06]} 39. Kxf3 {[%emt 0:00:07]} g5 {[%emt 0:00:55]} 40. Ng2 {[%emt 0:01:03]} Qe2# 0-1

[Event "GER-ch Youth U12W 2020"]
[Site "Willingen"]
[Date "2020.10.28"]
[Round "3.3"]
[White "Peglau, Dora"]
[Black "Wartenberg, Alissa"]
[Result "0-1"]
[ECO "A22"]
[WhiteElo "1683"]
[BlackElo "1463"]
[Annotator "NA"]
[PlyCount "42"]
[EventDate "2020.10.27"]
[EventType "swiss"]
[EventRounds "7"]
[EventCountry "GER"]
[SourceTitle "playchess.com"]
[Source "ChessBase"]
[SourceQuality "1"]
[TimeControl "40/5400+30:1800+30"]

1. c4 {[%emt 0:00:00]} e5 {[%emt 0:00:00]} 2. Nc3 {[%emt 0:00:00]} Nf6 {[%emt 0:00:00]} 3. g3 {[%emt 0:00:37]} d5 {[%emt 0:00:00]} 4. cxd5 {[%emt 0:00:08]} Nxd5 {[%emt 0:00:00]} 5. Bg2 {[%emt 0:00:20]} Nb6 {[%emt 0:00:11]} 6. Nf3 {[%emt 0:00:46]} Nc6 {[%emt 0:00:14]} 7. O-O {[%emt 0:01:00]} Be6 {[%emt 0:00:39]} 8. d3 {[%emt 0:05:30]} f6 {[%emt 0:03:08]} 9. Bd2 {[%emt 0:02:13]} Qd7 {[%emt 0:00:53]} 10. Rc1 {[%emt 0:00:57]} O-O-O {[%emt 0:05:45]} 11. a3 {[%emt 0:06:49]} h5 {[%emt 0:00:41]} 12. h4 {[%emt 0:02:34]} Be7 {[%emt 0:07:09]} 13. b4 {[%emt 0:01:56]} Bh3 {[%emt 0:02:48]} 14. Qb3 {[%emt 0:11:46]} Bxg2 {[%emt 0:00:26]} 15. Kxg2 {[%emt 0:00:05]} g5 {[%emt 0:01:51]} 16. hxg5 {[%emt 0:03:21]} fxg5 {[%emt 0:00:15]} 17. Bxg5 {[%emt 0:05:02]} h4 {[%emt 0:04:02]} 18. Bxe7 {[%emt 0:06:22]} Qxe7 {[%emt 0:05:33]} 19. Ne4 {[%emt 0:16:36]} Nd5 {[%emt 0:05:00]} 20. Rg1 {[%emt 0:09:24]} hxg3 {[%emt 0:03:10]} 21. Nxg3 {[%emt 0:00:44]} Qe6 {[%emt 0:00:19]} 0-1

[Event "GER-ch Youth U12W 2020"]
[Site "Willingen"]
[Date "2020.10.28"]
[Round "3.4"]
[White "Wilmink, Anna"]
[Black "Jacobasch, Ronja"]
[Result "1/2-1/2"]
[ECO "B07"]
[WhiteElo "1608"]
[BlackElo "1549"]
[Annotator "NA"]
[PlyCount "73"]
[EventDate "2020.10.27"]
[EventType "swiss"]
[EventRounds "7"]
[EventCountry "GER"]
[SourceTitle "playchess.com"]
[Source "ChessBase"]
[SourceQuality "1"]
[TimeControl "40/5400+30:1800+30"]

1. e4 {[%emt 0:00:00]} d6 {[%emt 0:00:00]} 2. d4 {[%emt 0:00:00]} Nf6 {[%emt 0:00:00]} 3. Nc3 {[%emt 0:00:05]} Nbd7 {[%emt 0:00:11]} 4. f4 {[%emt 0:00:48]} e5 {[%emt 0:15:47]} 5. Nf3 {[%emt 0:05:05]} exd4 {[%emt 0:02:10]} 6. Nxd4 {[%emt 0:03:35]} g6 {[%emt 0:04:02]} 7. Bd3 {[%emt 0:02:10]} Bg7 {[%emt 0:01:08]} 8. Be3 {[%emt 0:01:04]} Qe7 {[%emt 0:07:35]} 9. O-O {[%emt 0:05:06]} O-O {[%emt 0:00:47]} 10. h3 {[%emt 0:04:12]} Nc5 {[%emt 0:02:37]} 11. Qf3 {[%emt 0:01:56]} Re8 {[%emt 0:01:49]} 12. Rfe1 {[%emt 0:02:30]} Bd7 {[%emt 0:05:58]} 13. Bf2 {[%emt 0:02:41]} Ne6 {[%emt 0:08:35]} 14. Nxe6 {[%emt 0:08:53]} fxe6 {[%emt 0:03:41]} 15. e5 {[%emt 0:06:27]} Nd5 {[%emt 0:12:00]} 16. Nxd5 {[%emt 0:05:20]} exd5 {[%emt 0:00:23]} 17. Qxd5+ {[%emt 0:00:20]} Qf7 {[%emt 0:02:41]} 18. Qxf7+ {[%emt 0:01:37]} Kxf7 {[%emt 0:00:35]} 19. exd6 {[%emt 0:01:56]} Rxe1+ {[%emt 0:02:49]} 20. Rxe1 {[%emt 0:00:24]} cxd6 {[%emt 0:01:24]} 21. b3 {[%emt 0:00:54]} b6 {[%emt 0:00:53]} 22. Kf1 {[%emt 0:03:22]} Re8 {[%emt 0:04:08]} 23. Rxe8 {[%emt 0:00:45]} Kxe8 {[%emt 0:00:42]} 24. Ke2 {[%emt 0:00:41]} Ke7 {[%emt 0:01:13]} 25. c4 {[%emt 0:01:42]} Ke6 {[%emt 0:01:02]} 26. Ke3 {[%emt 0:00:55]} Bc6 {[%emt 0:01:32]} 27. g4 {[%emt 0:02:55]} Bg2 {[%emt 0:03:27]} 28. h4 {[%emt 0:02:46]} Bh3 {[%emt 0:00:50]} 29. Kf3 {[%emt 0:01:23]} h5 {[%emt 0:01:19]} 30. gxh5 {[%emt 0:08:18]} gxh5 {[%emt 0:00:34]} 31. Bg3 {[%emt 0:01:56]} Bf6 {[%emt 0:01:56]} 32. f5+ {[%emt 0:07:31]} Bxf5 {[%emt 0:01:49]} 33. Bxf5+ {[%emt 0:00:28]} Kxf5 {[%emt 0:00:10]} 34. Bxd6 {[%emt 0:00:48]} Bxh4 {[%emt 0:00:25]} 35. Bb8 {[%emt 0:00:16]} a6 {[%emt 0:00:25]} 36. Bc7 {[%emt 0:00:27]} b5 {[%emt 0:00:31]} 37. c5 {[%emt 0:00:47]} 1/2-1/2

[Event "GER-ch Youth U12W 2020"]
[Site "Willingen"]
[Date "2020.10.28"]
[Round "3.5"]
[White "Trunz, Michelle"]
[Black "Lorenz, Veronika"]
[Result "1-0"]
[ECO "D33"]
[WhiteElo "1662"]
[BlackElo "1273"]
[Annotator "NA RC"]
[PlyCount "163"]
[EventDate "2020.10.27"]
[EventType "swiss"]
[EventRounds "7"]
[EventCountry "GER"]
[SourceTitle "playchess.com"]
[Source "ChessBase"]
[SourceQuality "1"]
[TimeControl "40/5400+30:1800+30"]

1. d4 {[%emt 0:00:00]} d5 {[%emt 0:00:00]} 2. c4 {[%emt 0:00:00]} e6 {[%emt 0:00:00]} 3. Nc3 {[%emt 0:00:00]} c5 {[%emt 0:00:00]} 4. cxd5 {[%emt 0:00:07]} exd5 {[%emt 0:00:04]} 5. Nf3 {[%emt 0:00:13]} Nc6 {[%emt 0:00:09]} 6. g3 {[%emt 0:00:41]} Nf6 {[%emt 0:00:31]} 7. Bg2 {[%emt 0:00:34]} cxd4 {[%emt 0:00:45]} 8. Nxd4 {[%emt 0:00:07]} Be7 {[%emt 0:00:20]} 9. O-O {[%emt 0:00:47]} O-O {[%emt 0:00:28]} 10. Be3 {[%emt 0:03:37]} Be6 {[%emt 0:03:35]} 11. a3 {[%emt 0:03:08]} Qd7 {[%emt 0:04:32]} 12. Qd2 {[%emt 0:00:22]} Rfe8 {[%emt 0:02:45]} 13. Rfd1 {[%emt 0:01:04]} Rad8 {[%emt 0:00:47]} 14. Rac1 {[%emt 0:00:39]} Bh3 {[%emt 0:11:01]} 15. Bh1 {[%emt 0:00:57]} Bf8 {[%emt 0:03:32]} 16. Nb3 {[%emt 0:15:02]} Be6 {[%emt 0:07:45]} 17. Nd4 {[%emt 0:19:42]} a6 {[%emt 0:07:05]} 18. Bg5 {[%emt 0:09:15]} Be7 {[%emt 0:13:36]} 19. e3 {[%emt 0:01:30]} h6 {[%emt 0:06:28]} 20. Bxf6 {[%emt 0:00:46]} Bxf6 {[%emt 0:00:02]} 21. Nce2 {[%emt 0:01:21]} Ne5 {[%emt 0:12:45]} 22. b3 {[%emt 0:03:20]} Qe7 {[%emt 0:06:10]} 23. a4 {[%emt 0:01:45]} Rd6 {[%emt 0:02:11]} 24. Rc2 {[%emt 0:03:07]} Nc6 {[%emt 0:05:32]} 25. Rdc1 {[%emt 0:03:53]} Rc8 {[%emt 0:01:31]} 26. b4 {[%emt 0:02:26]} Qe8 {[%emt 0:01:25]} 27. a5 {[%emt 0:08:25]} Rdd8 {[%emt 0:01:46]} 28. Bg2 {[%emt 0:02:22]} Kh8 {[%emt 0:01:50]} 29. Nxe6 {[%emt 0:03:18]} fxe6 {[%emt 0:00:24]} 30. Bh3 {[%emt 0:00:46]} Qe7 {[%emt 0:02:17]} 31. Nf4 {[%emt 0:00:36]} Qd6 {[%emt 0:02:21]} 32. Nxe6 {[%emt 0:01:38]} Re8 {[%emt 0:00:11]} 33. Nf4 {[%emt 0:00:49]} Rcd8 {[%emt 0:00:13]} 34. Ne6 {[%emt 0:04:38]} Rc8 {[%emt 0:00:04]} 35. Nc5 {[%emt 0:00:30]} Rb8 {[%emt 0:00:14]} 36. Bd7 {[%emt 0:01:08]} Re7 {[%emt 0:01:11]} 37. Bxc6 {[%emt 0:00:43]} bxc6 {[%emt 0:00:04]} 38. Nxa6 {[%emt 0:00:34]} Rc8 {[%emt 0:00:36]} 39. b5 {[%emt 0:02:28]} Ra7 {[%emt 0:01:35]} 40. Qd3 {[%emt 0:01:03]} Rca8 {[%emt 0:01:01]} 41. Rxc6 {[%emt 0:30:17]} Qd8 {[%emt 0:31:17]} 42. Rb6 {[%emt 0:06:36]} Be7 {[%emt 0:00:00]} 43. Kg2 {[%emt 0:00:00]} Kg8 {[%emt 0:00:00]} 44. Qf5 {[%emt 0:00:00]} Bf6 {[%emt 0:00:00]} 45. Qe6+ {[%emt 0:00:00]} Kh8 {[%emt 0:00:00]} 46. Rd1 {[%emt 0:00:00]} Rd7 {[%emt 0:00:00]} 47. Nc5 {[%emt 0:00:00]} Re7 {[%emt 0:00:00]} 48. Qxd5 {[%emt 0:00:00]} Qxd5+ {[%emt 0:00:00]} 49. Rxd5 {[%emt 0:00:00]} Rxa5 {[%emt 0:00:00]} 50. Nb3 {[%emt 0:00:00]} Ra3 {[%emt 0:00:00]} 51. Nd4 {[%emt 0:00:00]} Rd3 {[%emt 0:00:00]} 52. Rbd6 {[%emt 0:00:00]} Rb7 {[%emt 0:00:00]} 53. b6 {[%emt 0:00:00]} Bxd4 {[%emt 0:00:00]} 54. Rxd4 {[%emt 0:00:00]} Rb3 {[%emt 0:00:00]} 55. Re4 {[%emt 0:00:00]} R7xb6 {[%emt 0:00:00]} 56. Rxb6 {[%emt 0:00:00]} Rxb6 {[%emt 0:00:00]} 57. Kf3 {[%emt 0:00:00]} Kg8 {[%emt 0:00:00]} 58. Rf4 {[%emt 0:00:00]} Kh7 {[%emt 0:00:00]} 59. Kg4 {[%emt 0:00:00]} Kg6 {[%emt 0:00:00]} 60. h4 {[%emt 0:00:00]} h5+ {[%emt 0:00:00]} 61. Kf3 {[%emt 0:00:00]} Re6 {[%emt 0:00:00]} 62. g4 {[%emt 0:00:00]} hxg4+ {[%emt 0:00:00]} 63. Kxg4 {[%emt 0:00:00]} Kh6 {[%emt 0:00:00]} 64. Kf3 {[%emt 0:00:00]} Kh5 {[%emt 0:00:00]} 65. Kg3 {[%emt 0:00:00]} Rg6+ {[%emt 0:00:00]} 66. Kf3 {[%emt 0:00:00]} Re6 {[%emt 0:00:00]} 67. e4 {[%emt 0:00:00]} g5 {[%emt 0:00:00]} 68. Rf5 {[%emt 0:00:00]} Kxh4 {[%emt 0:00:00]} 69. Ke3 {[%emt 0:00:00]} g4 {[%emt 0:00:00]} 70. e5 {[%emt 0:00:00]} g3 {[%emt 0:00:00]} 71. fxg3+ {[%emt 0:00:03]} Kxg3 {[%emt 0:00:00]} 72. Rg5+ {[%emt 0:00:25]} Kh4 {[%emt 0:00:00]} 73. Kf4 {[%emt 0:00:58]} Re8 {[%emt 0:00:00]} 74. Rg6 {[%emt 0:00:40]} Kh5 {[%emt 0:00:00]} 75. Rf6 {[%emt 0:00:13]} Rd8 {[%emt 0:02:14]} 76. Kf5 {[%emt 0:00:06]} Rd1 {[%emt 0:02:44]} 77. Rd6 {[%emt 0:00:27]} Rf1+ {[%emt 0:00:25]} 78. Ke6 {[%emt 0:00:22]} Kg6 {[%emt 0:00:57]} 79. Kd7+ {[%emt 0:00:18]} Kf7 {[%emt 0:01:38]} 80. e6+ {[%emt 0:00:23]} Kg8 {[%emt 0:01:57]} 81. e7 {[%emt 0:00:29]} Rf7 {[%emt 0:02:10]} 82. Kd8 {[%emt 0:00:15]} 1-0

[Event "GER-ch Youth U12W 2020"]
[Site "Willingen"]
[Date "2020.10.28"]
[Round "3.6"]
[White "Fischer, Juliane"]
[Black "Fock, Madiha"]
[Result "1-0"]
[ECO "B01"]
[WhiteElo "1509"]
[BlackElo "1258"]
[Annotator "NA"]
[PlyCount "55"]
[EventDate "2020.10.27"]
[EventType "swiss"]
[EventRounds "7"]
[EventCountry "GER"]
[SourceTitle "playchess.com"]
[Source "ChessBase"]
[SourceQuality "1"]
[TimeControl "40/5400+30:1800+30"]

1. e4 {[%emt 0:00:00]} d5 {[%emt 0:00:00]} 2. exd5 {[%emt 0:00:00]} Qxd5 {[%emt 0:00:00]} 3. Nc3 {[%emt 0:00:00]} Qd6 {[%emt 0:00:00]} 4. d4 {[%emt 0:00:17]} c6 {[%emt 0:00:01]} 5. Nf3 {[%emt 0:00:19]} Bg4 {[%emt 0:00:09]} 6. Be3 {[%emt 0:00:39]} e6 {[%emt 0:00:55]} 7. Bd3 {[%emt 0:00:49]} Nf6 {[%emt 0:01:05]} 8. h3 {[%emt 0:00:37]} Bh5 {[%emt 0:00:12]} 9. Qe2 {[%emt 0:00:19]} Nbd7 {[%emt 0:02:33]} 10. O-O-O {[%emt 0:00:16]} O-O-O {[%emt 0:00:33]} 11. g4 {[%emt 0:00:18]} Bg6 {[%emt 0:01:13]} 12. Bxg6 {[%emt 0:00:07]} hxg6 {[%emt 0:00:12]} 13. Ne5 {[%emt 0:00:19]} Qe7 {[%emt 0:04:29]} 14. Nxc6 {[%emt 0:00:51]} bxc6 {[%emt 0:04:23]} 15. Qa6+ {[%emt 0:00:12]} Kb8 {[%emt 0:00:13]} 16. Bf4+ {[%emt 0:00:13]} e5 {[%emt 0:01:07]} 17. dxe5 {[%emt 0:00:14]} Nd5 {[%emt 0:01:13]} 18. Nxd5 {[%emt 0:03:49]} Qe6 {[%emt 0:03:02]} 19. Qa5 {[%emt 0:14:52]} Rc8 {[%emt 0:03:09]} 20. Be3 {[%emt 0:02:59]} c5 {[%emt 0:00:28]} 21. Rd3 {[%emt 0:11:55]} Rc6 {[%emt 0:05:02]} 22. Nf4 {[%emt 0:05:21]} Qe8 {[%emt 0:03:12]} 23. Rhd1 {[%emt 0:00:35]} Rc7 {[%emt 0:03:34]} 24. Rxd7 {[%emt 0:06:55]} Rxd7 {[%emt 0:02:11]} 25. Qb5+ {[%emt 0:00:26]} Kc8 {[%emt 0:00:53]} 26. Qc6+ {[%emt 0:00:42]} Kd8 {[%emt 0:03:44]} 27. Qa8+ {[%emt 0:00:07]} Kc7 {[%emt 0:00:06]} 28. Qxe8 {[%emt 0:00:08]} 1-0

[Event "GER-ch Youth U12W 2020"]
[Site "Willingen"]
[Date "2020.10.28"]
[Round "3.7"]
[White "Schwenke, Mia"]
[Black "Cerkez, Lorena"]
[Result "1-0"]
[ECO "C07"]
[WhiteElo "1265"]
[BlackElo "1258"]
[Annotator "NA"]
[PlyCount "131"]
[EventDate "2020.10.27"]
[EventType "swiss"]
[EventRounds "7"]
[EventCountry "GER"]
[SourceTitle "playchess.com"]
[Source "ChessBase"]
[SourceQuality "1"]
[TimeControl "40/5400+30:1800+30"]

1. e4 {[%emt 0:00:00]} e6 {[%emt 0:00:00]} 2. d4 {[%emt 0:00:00]} d5 {[%emt 0:00:00]} 3. Nd2 {[%emt 0:00:00]} c5 {[%emt 0:00:19]} 4. exd5 {[%emt 0:00:44]} Qxd5 {[%emt 0:00:54]} 5. Ngf3 {[%emt 0:00:22]} Nc6 {[%emt 0:01:59]} 6. Bc4 {[%emt 0:01:11]} Qd8 {[%emt 0:00:16]} 7. O-O {[%emt 0:00:53]} Nf6 {[%emt 0:00:55]} 8. Nb3 {[%emt 0:01:34]} b6 {[%emt 0:06:15]} 9. Re1 {[%emt 0:08:59]} Be7 {[%emt 0:13:55]} 10. Bb5 {[%emt 0:07:48]} Bd7 {[%emt 0:19:37]} 11. Bxc6 {[%emt 0:03:38]} Bxc6 {[%emt 0:00:10]} 12. Ne5 {[%emt 0:02:56]} Qd5 {[%emt 0:22:57]} 13. Nxc6 {[%emt 0:09:44]} Qxc6 {[%emt 0:00:09]} 14. c3 {[%emt 0:15:28]} Rd8 {[%emt 0:04:04]} 15. Qe2 {[%emt 0:02:11]} O-O {[%emt 0:02:03]} 16. Bf4 {[%emt 0:01:05]} Rd7 {[%emt 0:03:21]} 17. Rad1 {[%emt 0:04:04]} Rc8 {[%emt 0:02:24]} 18. Be5 {[%emt 0:02:05]} Rcd8 {[%emt 0:02:36]} 19. Bxf6 {[%emt 0:06:55]} Bxf6 {[%emt 0:00:12]} 20. dxc5 {[%emt 0:01:37]} Rxd1 {[%emt 0:01:57]} 21. Rxd1 {[%emt 0:01:36]} bxc5 {[%emt 0:01:50]} 22. Rxd8+ {[%emt 0:01:24]} Bxd8 {[%emt 0:00:09]} 23. Qd2 {[%emt 0:08:56]} Be7 {[%emt 0:01:16]} 24. g3 {[%emt 0:02:05]} Kf8 {[%emt 0:01:57]} 25. Nc1 {[%emt 0:02:48]} f6 {[%emt 0:01:51]} 26. Ne2 {[%emt 0:01:37]} e5 {[%emt 0:01:23]} 27. f4 {[%emt 0:00:57]} c4 {[%emt 0:00:48]} 28. fxe5 {[%emt 0:03:05]} fxe5 {[%emt 0:01:56]} 29. h3 {[%emt 0:04:00]} Bc5+ {[%emt 0:05:08]} 30. Kh2 {[%emt 0:00:16]} Ke7 {[%emt 0:01:16]} 31. Qg5+ {[%emt 0:00:20]} Qf6 {[%emt 0:00:06]} 32. Qxf6+ {[%emt 0:00:17]} gxf6 {[%emt 0:00:35]} 33. Kg2 {[%emt 0:00:14]} Be3 {[%emt 0:01:13]} 34. Kf3 {[%emt 0:00:22]} Bd2 {[%emt 0:00:34]} 35. g4 {[%emt 0:00:45]} Be1 {[%emt 0:00:58]} 36. Ke3 {[%emt 0:00:41]} Ke6 {[%emt 0:02:11]} 37. Ke4 {[%emt 0:00:21]} Bf2 {[%emt 0:00:09]} 38. Kf3 {[%emt 0:00:52]} Be1 {[%emt 0:00:47]} 39. Ke4 {[%emt 0:00:37]} Bd2 {[%emt 0:00:43]} 40. b3 {[%emt 0:01:18]} cxb3 {[%emt 0:00:06]} 41. axb3 {[%emt 0:30:05]} Bg5 {[%emt 0:30:55]} 42. c4 {[%emt 0:00:10]} Kd6 {[%emt 0:00:29]} 43. b4 {[%emt 0:00:00]} a6 {[%emt 0:00:00]} 44. Nc3 {[%emt 0:00:00]} Bd2 {[%emt 0:00:00]} 45. Nd5 {[%emt 0:00:00]} Kc6 {[%emt 0:00:00]} 46. b5+ {[%emt 0:00:00]} axb5 {[%emt 0:00:00]} 47. cxb5+ {[%emt 0:00:00]} Kxb5 {[%emt 0:00:00]} 48. Nxf6 {[%emt 0:00:00]} h6 {[%emt 0:00:00]} 49. Kxe5 {[%emt 0:00:00]} Bg5 {[%emt 0:00:00]} 50. Kf5 {[%emt 0:00:00]} Kc4 {[%emt 0:00:00]} 51. Kg6 {[%emt 0:00:00]} Kd4 {[%emt 0:00:00]} 52. Ng8 {[%emt 0:00:00]} Ke5 {[%emt 0:00:00]} 53. Nxh6 {[%emt 0:00:00]} Kf4 {[%emt 0:00:00]} 54. Nf7 {[%emt 0:00:00]} Be7 {[%emt 0:00:00]} 55. Kh5 {[%emt 0:00:00]} Kg3 {[%emt 0:00:00]} 56. Ng5 {[%emt 0:00:00]} Kf4 {[%emt 0:00:00]} 57. h4 {[%emt 0:00:00]} Bf6 {[%emt 0:00:00]} 58. Nh3+ {[%emt 0:00:00]} Kg3 {[%emt 0:00:00]} 59. g5 {[%emt 0:00:00]} Be5 {[%emt 0:00:29]} 60. Ng1 {[%emt 0:01:36]} Kf2 {[%emt 0:00:54]} 61. Kg6 {[%emt 0:01:36]} Kxg1 {[%emt 0:00:40]} 62. h5 {[%emt 0:00:22]} Kf2 {[%emt 0:00:08]} 63. Kf7 {[%emt 0:01:58]} Kg3 {[%emt 0:00:20]} 64. g6 {[%emt 0:00:13]} Kg4 {[%emt 0:00:12]} 65. h6 {[%emt 0:00:07]} Kh5 {[%emt 0:01:20]} 66. g7 {[%emt 0:00:16]} 1-0

[Event "GER-ch Youth U12W 2020"]
[Site "Willingen"]
[Date "2020.10.28"]
[Round "3.9"]
[White "Glotz, Diana"]
[Black "Müller, Riyanna"]
[Result "1-0"]
[ECO "A25"]
[WhiteElo "1098"]
[BlackElo "1460"]
[Annotator "NA"]
[PlyCount "41"]
[EventDate "2020.10.27"]
[EventType "swiss"]
[EventRounds "7"]
[EventCountry "GER"]
[SourceTitle "playchess.com"]
[Source "ChessBase"]
[SourceQuality "1"]
[TimeControl "40/5400+30:1800+30"]

1. c4 {[%emt 0:00:00]} e5 {[%emt 0:00:00]} 2. Nc3 {[%emt 0:00:00]} Nc6 {[%emt 0:00:49]} 3. g3 {[%emt 0:00:03]} Nf6 {[%emt 0:01:06]} 4. Bg2 {[%emt 0:00:15]} Bc5 {[%emt 0:01:06]} 5. e3 {[%emt 0:00:20]} d5 {[%emt 0:01:11]} 6. cxd5 {[%emt 0:01:12]} Nb4 {[%emt 0:00:43]} 7. d4 {[%emt 0:00:57]} exd4 {[%emt 0:00:54]} 8. exd4 {[%emt 0:00:14]} Be7 {[%emt 0:01:03]} 9. Nge2 {[%emt 0:06:31]} Bf5 {[%emt 0:04:27]} 10. Qa4+ {[%emt 0:06:36]} Kf8 {[%emt 0:05:47]} 11. O-O {[%emt 0:01:05]} Bc2 {[%emt 0:04:42]} 12. b3 {[%emt 0:06:11]} Bf5 {[%emt 0:04:34]} 13. d6 {[%emt 0:13:45]} Bxd6 {[%emt 0:07:24]} 14. Qb5 {[%emt 0:03:34]} Bd7 {[%emt 0:09:32]} 15. Qg5 {[%emt 0:08:08]} h6 {[%emt 0:05:15]} 16. Qd2 {[%emt 0:01:21]} c6 {[%emt 0:01:51]} 17. Ba3 {[%emt 0:02:22]} Qe7 {[%emt 0:03:17]} 18. Nf4 {[%emt 0:03:10]} g5 {[%emt 0:01:20]} 19. Rfe1 {[%emt 0:02:09]} Bxf4 {[%emt 0:04:07]} 20. gxf4 {[%emt 0:04:05]} Qd6 {[%emt 0:02:17]} 21. Nb5 {[%emt 0:04:45]} 1-0